[Event "Early-Titled-Tuesday-Blitz-May-07-2024"]
[Site "Chess.com"]
[Date "2024.05.07"]
[Round "5"]
[White "Aklan10n"]
[Black "JoliyRoger"]
[Result "0-1"]
[WhiteElo "2212"]
[BlackElo "2400"]
[TimeControl "180+1"]
[EndTime "9:00:14 PDT"]
[Termination "JoliyRoger won on time"]

1. e4 {[%clk 0:03:00.9]} 1... c6 {[%clk 0:02:58.8]} 2. d4 {[%clk 0:02:40]} 2...
d5 {[%clk 0:02:57]} 3. exd5 {[%clk 0:02:40.9]} 3... cxd5 {[%clk 0:02:57.2]} 4.
c4 {[%clk 0:02:41.5]} 4... Nf6 {[%clk 0:02:56.9]} 5. Nc3 {[%clk 0:02:42]} 5...
e6 {[%clk 0:02:57.6]} 6. Nf3 {[%clk 0:02:41.8]} 6... Bb4 {[%clk 0:02:58.2]} 7.
Qc2 {[%clk 0:02:39.5]} 7... Nc6 {[%clk 0:02:56.8]} 8. c5 {[%clk 0:02:33.1]} 8...
O-O {[%clk 0:02:52.1]} 9. Bd3 {[%clk 0:02:31.7]} 9... b6 {[%clk 0:02:39.1]} 10.
O-O {[%clk 0:02:10.3]} 10... bxc5 {[%clk 0:02:36.2]} 11. dxc5 {[%clk 0:02:11.2]}
11... Bxc5 {[%clk 0:02:16.1]} 12. Bg5 {[%clk 0:02:00.6]} 12... Nb4 {[%clk
0:02:15.5]} 13. Qd2 {[%clk 0:01:40.7]} 13... Nxd3 {[%clk 0:02:13.5]} 14. Qxd3
{[%clk 0:01:41.6]} 14... Be7 {[%clk 0:02:07.7]} 15. Rfc1 {[%clk 0:01:34.2]}
15... h6 {[%clk 0:02:07.5]} 16. Be3 {[%clk 0:01:33.8]} 16... a5 {[%clk
0:02:07.8]} 17. Na4 {[%clk 0:01:29.4]} 17... Ba6 {[%clk 0:02:07.7]} 18. Qd1
{[%clk 0:01:23.2]} 18... Rc8 {[%clk 0:01:58.7]} 19. Ne5 {[%clk 0:01:21.7]} 19...
Bb5 {[%clk 0:01:46.2]} 20. Nb6 {[%clk 0:01:18.8]} 20... Rb8 {[%clk 0:01:34.7]}
21. Nc6 {[%clk 0:01:14.8]} 21... Bxc6 {[%clk 0:01:32.9]} 22. Rxc6 {[%clk
0:01:15.7]} 22... Nd7 {[%clk 0:01:25.5]} 23. Na4 {[%clk 0:00:54.2]} 23... Ne5
{[%clk 0:01:23.9]} 24. Ra6 {[%clk 0:00:46.2]} 24... Nc4 {[%clk 0:01:21.2]} 25.
Bd4 {[%clk 0:00:43.4]} 25... Qc8 {[%clk 0:01:11.5]} 26. Ra7 {[%clk 0:00:38.3]}
26... Re8 {[%clk 0:00:55.3]} 27. b3 {[%clk 0:00:33.2]} 27... Nd6 {[%clk
0:00:37]} 28. Be5 {[%clk 0:00:27]} 28... Rb7 {[%clk 0:00:25.8]} 29. Rc1 {[%clk
0:00:26.2]} 29... Rxa7 {[%clk 0:00:14.5]} 30. Rxc8 {[%clk 0:00:24.5]} 30... Rxc8
{[%clk 0:00:14.9]} 31. g3 {[%clk 0:00:17.6]} 31... Ne8 {[%clk 0:00:13.5]} 32.
Qd2 {[%clk 0:00:10.6]} 32... Bb4 {[%clk 0:00:12.7]} 33. Qe3 {[%clk 0:00:10.2]}
33... Rb7 {[%clk 0:00:11.9]} 34. Bd4 {[%clk 0:00:09.8]} 34... Nf6 {[%clk
0:00:10.8]} 35. Bxf6 {[%clk 0:00:09.2]} 35... gxf6 {[%clk 0:00:11.4]} 36. Qxh6
{[%clk 0:00:09.9]} 36... Be7 {[%clk 0:00:12.1]} 37. h4 {[%clk 0:00:09.3]} 37...
Rd8 {[%clk 0:00:04.7]} 38. h5 {[%clk 0:00:09.1]} 38... d4 {[%clk 0:00:05.3]} 39.
Nb2 {[%clk 0:00:08]} 39... d3 {[%clk 0:00:04.8]} 40. Nc4 {[%clk 0:00:04.9]}
40... Rb5 {[%clk 0:00:04]} 41. g4 {[%clk 0:00:02.4]} 41... Rg5 {[%clk
0:00:03.3]} 42. Nd2 {[%clk 0:00:02.3]} 42... Rxg4+ {[%clk 0:00:03.1]} 43. Kf1
{[%clk 0:00:03.2]} 43... Rg5 {[%clk 0:00:03.4]} 44. f4 {[%clk 0:00:03.1]} 44...
Rf5 {[%clk 0:00:04]} 45. Kf2 {[%clk 0:00:03.7]} 45... Rd4 {[%clk 0:00:04.4]} 46.
Ke3 {[%clk 0:00:03.9]} 46... Rdxf4 {[%clk 0:00:03.9]} 47. Kxd3 {[%clk 0:00:04]}
47... Bb4 {[%clk 0:00:02.2]} 48. Ne4 {[%clk 0:00:04.1]} 48... Rf3+ {[%clk
0:00:01.3]} 49. Ke2 {[%clk 0:00:03.9]} 49... Bf8 {[%clk 0:00:01.9]} 50. Qd2
{[%clk 0:00:03]} 50... R3f4 {[%clk 0:00:02.3]} 51. Ke3 {[%clk 0:00:01.7]} 51...
Rh4 {[%clk 0:00:01.7]} 52. Qg2+ {[%clk 0:00:01.6]} 52... Bg7 {[%clk 0:00:01.9]}
0-1

[Event "Early-Titled-Tuesday-Blitz-May-07-2024"]
[Site "Chess.com"]
[Date "2024.05.07"]
[Round "5"]
[White "Aygehovit1992"]
[Black "DanielNaroditsky"]
[Result "1-0"]
[WhiteElo "2864"]
[BlackElo "3060"]
[TimeControl "180+1"]
[EndTime "9:00:15 PDT"]
[Termination "Aygehovit1992 won by checkmate"]

1. e4 {[%clk 0:02:50.8]} 1... Nf6 {[%clk 0:03:00.9]} 2. e5 {[%clk 0:02:49.4]}
2... Nd5 {[%clk 0:03:00.8]} 3. d4 {[%clk 0:02:50.2]} 3... d6 {[%clk 0:03:01]} 4.
Nf3 {[%clk 0:02:51]} 4... dxe5 {[%clk 0:03:01.4]} 5. Nxe5 {[%clk 0:02:51.7]}
5... c6 {[%clk 0:03:02.2]} 6. Be2 {[%clk 0:02:50.9]} 6... Bf5 {[%clk 0:03:02.3]}
7. O-O {[%clk 0:02:50.5]} 7... Nd7 {[%clk 0:03:01.7]} 8. Nf3 {[%clk 0:02:50.8]}
8... e6 {[%clk 0:03:02.1]} 9. a3 {[%clk 0:02:28.9]} 9... Bd6 {[%clk 0:03:01.4]}
10. c4 {[%clk 0:02:29.1]} 10... N5f6 {[%clk 0:03:01.8]} 11. Nc3 {[%clk
0:02:29.1]} 11... h6 {[%clk 0:03:02.3]} 12. b4 {[%clk 0:02:26.4]} 12... O-O
{[%clk 0:03:01.8]} 13. Bb2 {[%clk 0:02:26.3]} 13... e5 {[%clk 0:03:00.1]} 14. c5
{[%clk 0:02:21.2]} 14... Bc7 {[%clk 0:02:27.8]} 15. d5 {[%clk 0:02:21.3]} 15...
cxd5 {[%clk 0:02:28.1]} 16. Nxd5 {[%clk 0:02:22]} 16... Nxd5 {[%clk 0:02:29]}
17. Qxd5 {[%clk 0:02:22.2]} 17... Be6 {[%clk 0:02:29.8]} 18. Qxb7 {[%clk
0:02:04]} 18... Nxc5 {[%clk 0:02:29.4]} 19. Qc6 {[%clk 0:01:52.9]} 19... Nd7
{[%clk 0:02:29.5]} 20. Rfd1 {[%clk 0:01:46.7]} 20... Rc8 {[%clk 0:01:59.1]} 21.
Ba6 {[%clk 0:01:46.2]} 21... Rb8 {[%clk 0:01:25.9]} 22. Rac1 {[%clk 0:01:40.5]}
22... Bb6 {[%clk 0:01:13.5]} 23. Nxe5 {[%clk 0:01:28.2]} 23... Qf6 {[%clk
0:00:58.4]} 24. Nxd7 {[%clk 0:01:09.2]} 24... Qxf2+ {[%clk 0:00:57]} 25. Kh1
{[%clk 0:01:09.4]} 25... Bxd7 {[%clk 0:00:55.7]} 26. Qc3 {[%clk 0:01:08.6]}
26... f6 {[%clk 0:00:38.2]} 27. Rxd7 {[%clk 0:01:07.5]} 27... Rbe8 {[%clk
0:00:38.1]} 28. Rf1 {[%clk 0:01:00.3]} 28... Qh4 {[%clk 0:00:34.6]} 29. Qg3
{[%clk 0:00:58.5]} 29... Qxg3 {[%clk 0:00:32.6]} 30. hxg3 {[%clk 0:00:59.4]}
30... Re4 {[%clk 0:00:29.1]} 31. Kh2 {[%clk 0:00:51]} 31... Rfe8 {[%clk
0:00:28.3]} 32. Bd3 {[%clk 0:00:48.6]} 32... Re3 {[%clk 0:00:28.4]} 33. Bg6
{[%clk 0:00:48.6]} 33... Rf8 {[%clk 0:00:24.9]} 34. Bd4 {[%clk 0:00:45.7]} 34...
Bxd4 {[%clk 0:00:21.4]} 35. Rxd4 {[%clk 0:00:46.6]} 35... Rxa3 {[%clk 0:00:19]}
36. Re1 {[%clk 0:00:46.8]} 36... Ra6 {[%clk 0:00:15]} 37. g4 {[%clk 0:00:37.8]}
37... Kh8 {[%clk 0:00:06.2]} 38. Re7 {[%clk 0:00:36.9]} 38... Ra4 {[%clk
0:00:05.4]} 39. Rdd7 {[%clk 0:00:36.1]} 39... Rg8 {[%clk 0:00:06.2]} 40. Bf7
{[%clk 0:00:29.7]} 40... Rb8 {[%clk 0:00:06.6]} 41. Be6 {[%clk 0:00:28.5]} 41...
Ra6 {[%clk 0:00:07.4]} 42. b5 {[%clk 0:00:22.8]} 42... Rab6 {[%clk 0:00:04.7]}
43. Bc4 {[%clk 0:00:21]} 43... Rc8 {[%clk 0:00:05.2]} 44. Rc7 {[%clk 0:00:20.6]}
44... Rxc7 {[%clk 0:00:04.7]} 45. Rxc7 {[%clk 0:00:21.5]} 45... Kh7 {[%clk
0:00:03.1]} 46. Rxa7 {[%clk 0:00:21.3]} 46... Kg6 {[%clk 0:00:03.2]} 47. Kg3
{[%clk 0:00:19.3]} 47... Rd6 {[%clk 0:00:02.7]} 48. Rc7 {[%clk 0:00:14.3]} 48...
h5 {[%clk 0:00:03.3]} 49. gxh5+ {[%clk 0:00:14]} 49... Kh6 {[%clk 0:00:04.1]}
50. Rc6 {[%clk 0:00:14.1]} 50... Rd2 {[%clk 0:00:04.4]} 51. b6 {[%clk
0:00:14.3]} 51... Rb2 {[%clk 0:00:05.3]} 52. Kf3 {[%clk 0:00:14.2]} 52... Kxh5
{[%clk 0:00:05.4]} 53. Ke4 {[%clk 0:00:14.5]} 53... Kg4 {[%clk 0:00:05]} 54. Kd5
{[%clk 0:00:14.8]} 54... Kg3 {[%clk 0:00:05.5]} 55. Kc5 {[%clk 0:00:15.2]} 55...
Kxg2 {[%clk 0:00:03.8]} 56. Rc7 {[%clk 0:00:13.8]} 56... g5 {[%clk 0:00:03.9]}
57. b7 {[%clk 0:00:14.2]} 57... f5 {[%clk 0:00:03.2]} 58. Bb5 {[%clk 0:00:14.6]}
58... Rc2+ {[%clk 0:00:03.9]} 59. Kb6 {[%clk 0:00:15]} 59... Rf2 {[%clk
0:00:04.2]} 60. b8=Q {[%clk 0:00:14.9]} 60... g4 {[%clk 0:00:05.1]} 61. Bc6+
{[%clk 0:00:14.9]} 61... Kg3 {[%clk 0:00:05]} 62. Rf7+ {[%clk 0:00:14.1]} 62...
f4 {[%clk 0:00:05.8]} 63. Qe5 {[%clk 0:00:13]} 63... Kh2 {[%clk 0:00:04.7]} 64.
Rxf4 {[%clk 0:00:12.5]} 64... Rxf4 {[%clk 0:00:03.7]} 65. Qxf4+ {[%clk
0:00:12.6]} 65... g3 {[%clk 0:00:04.6]} 66. Qh4+ {[%clk 0:00:12.5]} 66... Kg1
{[%clk 0:00:05.4]} 67. Qxg3+ {[%clk 0:00:12.8]} 67... Kf1 {[%clk 0:00:06.3]} 68.
Qh2 {[%clk 0:00:13.2]} 68... Ke1 {[%clk 0:00:06.7]} 69. Bf3 {[%clk 0:00:13.3]}
69... Kf1 {[%clk 0:00:07.3]} 70. Qg2+ {[%clk 0:00:13.8]} 70... Ke1 {[%clk
0:00:08.2]} 71. Qe2# {[%clk 0:00:14.4]} 1-0

[Event "Early-Titled-Tuesday-Blitz-May-07-2024"]
[Site "Chess.com"]
[Date "2024.05.07"]
[Round "5"]
[White "N_I_Chess"]
[Black "Shuvalov"]
[Result "1/2-1/2"]
[WhiteElo "2338"]
[BlackElo "2572"]
[TimeControl "180+1"]
[EndTime "9:00:15 PDT"]
[Termination "Game drawn by repetition"]

1. d4 {[%clk 0:02:52.4]} 1... Nf6 {[%clk 0:02:58.8]} 2. c4 {[%clk 0:02:52.6]}
2... g6 {[%clk 0:02:57.3]} 3. Nc3 {[%clk 0:02:52.3]} 3... d5 {[%clk 0:02:57.4]}
4. cxd5 {[%clk 0:02:52.1]} 4... Nxd5 {[%clk 0:02:56.7]} 5. Bd2 {[%clk
0:02:52.7]} 5... c5 {[%clk 0:02:56.1]} 6. dxc5 {[%clk 0:02:45.7]} 6... Bg7
{[%clk 0:02:54.3]} 7. Rc1 {[%clk 0:02:42.2]} 7... Nxc3 {[%clk 0:02:48.8]} 8.
Bxc3 {[%clk 0:02:42.2]} 8... Bxc3+ {[%clk 0:02:46.6]} 9. Rxc3 {[%clk 0:02:41.7]}
9... Qxd1+ {[%clk 0:02:45.5]} 10. Kxd1 {[%clk 0:02:42.6]} 10... Be6 {[%clk
0:02:44]} 11. b3 {[%clk 0:02:23.2]} 11... Nc6 {[%clk 0:02:40]} 12. Nf3 {[%clk
0:02:12.6]} 12... Nb4 {[%clk 0:02:28.4]} 13. a3 {[%clk 0:01:59.3]} 13... O-O-O+
{[%clk 0:02:23.3]} 14. Ke1 {[%clk 0:01:50.1]} 14... Bxb3 {[%clk 0:02:14.1]} 15.
Nd2 {[%clk 0:01:36.6]} 15... Rxd2 {[%clk 0:00:56.1]} 16. Kxd2 {[%clk 0:01:33.6]}
16... Rd8+ {[%clk 0:00:55.7]} 17. Kc1 {[%clk 0:01:26.8]} 17... Na2+ {[%clk
0:00:55.1]} 18. Kb2 {[%clk 0:01:26.9]} 18... Nxc3 {[%clk 0:00:55.2]} 19. Kxc3
{[%clk 0:01:27.8]} 19... Ba4 {[%clk 0:00:52.2]} 20. g3 {[%clk 0:01:26.2]} 20...
Bc6 {[%clk 0:00:51.8]} 21. f3 {[%clk 0:01:21.8]} 21... f5 {[%clk 0:00:47.2]} 22.
Bg2 {[%clk 0:01:19.8]} 22... Rd5 {[%clk 0:00:46.6]} 23. e4 {[%clk 0:01:00.6]}
23... Rxc5+ {[%clk 0:00:39.3]} 24. Kd4 {[%clk 0:00:58.2]} 24... Rc2 {[%clk
0:00:39.1]} 25. Bh3 {[%clk 0:00:57.8]} 25... Bd7 {[%clk 0:00:31.2]} 26. Ke5
{[%clk 0:00:39.5]} 26... Rc3 {[%clk 0:00:24.1]} 27. a4 {[%clk 0:00:35.1]} 27...
Rxf3 {[%clk 0:00:23.2]} 28. exf5 {[%clk 0:00:20.1]} 28... Bxf5 {[%clk
0:00:20.4]} 29. Rc1+ {[%clk 0:00:19.2]} 29... Kd8 {[%clk 0:00:19.9]} 30. Bg2
{[%clk 0:00:18.6]} 30... Rb3 {[%clk 0:00:18.6]} 31. Kf4 {[%clk 0:00:16.2]} 31...
Rb4+ {[%clk 0:00:17.7]} 32. Kg5 {[%clk 0:00:16.7]} 32... Rxa4 {[%clk 0:00:15.9]}
33. Bxb7 {[%clk 0:00:17.3]} 33... Rb4 {[%clk 0:00:14.5]} 34. Bf3 {[%clk
0:00:16.7]} 34... a5 {[%clk 0:00:14]} 35. Kh6 {[%clk 0:00:16.9]} 35... a4 {[%clk
0:00:13.8]} 36. Kxh7 {[%clk 0:00:17.2]} 36... a3 {[%clk 0:00:14.2]} 37. Ra1
{[%clk 0:00:15.7]} 37... Ra4 {[%clk 0:00:13.9]} 38. Bd5 {[%clk 0:00:14.7]} 38...
Kd7 {[%clk 0:00:12.7]} 39. Bb3 {[%clk 0:00:12.5]} 39... Ra8 {[%clk 0:00:11.6]}
40. g4 {[%clk 0:00:11.8]} 40... Bd3 {[%clk 0:00:10.9]} 41. Kg7 {[%clk
0:00:08.8]} 41... Kc6 {[%clk 0:00:10]} 42. h4 {[%clk 0:00:08.3]} 42... Kc5
{[%clk 0:00:09.9]} 43. h5 {[%clk 0:00:07.5]} 43... gxh5 {[%clk 0:00:10.2]} 44.
gxh5 {[%clk 0:00:08.4]} 44... e5 {[%clk 0:00:10]} 45. h6 {[%clk 0:00:08.3]}
45... Kb4 {[%clk 0:00:10.1]} 46. Bd5 {[%clk 0:00:07.8]} 46... Ra7+ {[%clk
0:00:09.9]} 47. Bf7 {[%clk 0:00:07.1]} 47... Kc3 {[%clk 0:00:09.3]} 48. Kg8
{[%clk 0:00:03]} 48... Kd2 {[%clk 0:00:07.5]} 49. Kg7 {[%clk 0:00:02.4]} 49...
Bc4 {[%clk 0:00:04.8]} 50. Rf1 {[%clk 0:00:00.7]} 50... Bxf1 {[%clk 0:00:02.9]}
51. h7 {[%clk 0:00:01.1]} 51... Ra8 {[%clk 0:00:03.2]} 52. Bg8 {[%clk
0:00:01.4]} 52... Bc4 {[%clk 0:00:02.4]} 53. Bxc4 {[%clk 0:00:00.2]} 53... Ra7+
{[%clk 0:00:02]} 54. Bf7 {[%clk 0:00:00.2]} 54... Ra8 {[%clk 0:00:02.2]} 55. Bg8
{[%clk 0:00:00.3]} 55... Ra7+ {[%clk 0:00:02.5]} 56. Bf7 {[%clk 0:00:01.1]}
56... Ra8 {[%clk 0:00:02.7]} 57. Bg8 {[%clk 0:00:01.8]} 57... Ra7+ {[%clk
0:00:03]} 58. Bf7 {[%clk 0:00:02.6]} 1/2-1/2

[Event "Early-Titled-Tuesday-Blitz-May-07-2024"]
[Site "Chess.com"]
[Date "2024.05.07"]
[Round "5"]
[White "laysa_latifah"]
[Black "Jojo_898"]
[Result "0-1"]
[WhiteElo "2192"]
[BlackElo "2437"]
[TimeControl "180+1"]
[EndTime "9:00:16 PDT"]
[Termination "Jojo_898 won by resignation"]

1. e4 {[%clk 0:03:00.9]} 1... d6 {[%clk 0:02:16.3]} 2. d4 {[%clk 0:02:57.9]}
2... Nf6 {[%clk 0:02:15.7]} 3. Bd3 {[%clk 0:02:55.1]} 3... g6 {[%clk 0:02:15.8]}
4. h3 {[%clk 0:02:47.1]} 4... Bg7 {[%clk 0:02:14.8]} 5. Nf3 {[%clk 0:02:47.5]}
5... Nbd7 {[%clk 0:02:10.9]} 6. c3 {[%clk 0:02:34.7]} 6... e5 {[%clk 0:02:09.6]}
7. Be3 {[%clk 0:02:33.4]} 7... O-O {[%clk 0:02:09.5]} 8. Nbd2 {[%clk 0:02:33.7]}
8... c6 {[%clk 0:02:08.2]} 9. O-O {[%clk 0:02:30.9]} 9... Qc7 {[%clk 0:02:06.4]}
10. Qc2 {[%clk 0:02:29.9]} 10... Nh5 {[%clk 0:01:57.1]} 11. Rfe1 {[%clk
0:02:24.6]} 11... Nf4 {[%clk 0:01:56]} 12. Bxf4 {[%clk 0:02:19]} 12... exf4
{[%clk 0:01:56.9]} 13. a4 {[%clk 0:02:19.4]} 13... Re8 {[%clk 0:01:52.3]} 14.
Nc4 {[%clk 0:02:19.2]} 14... Nf8 {[%clk 0:01:45.7]} 15. Qd2 {[%clk 0:02:12.2]}
15... Bh6 {[%clk 0:01:39.3]} 16. e5 {[%clk 0:02:07.7]} 16... d5 {[%clk
0:01:37.4]} 17. Nd6 {[%clk 0:02:07.3]} 17... Rd8 {[%clk 0:01:30.4]} 18. c4
{[%clk 0:02:00.4]} 18... Be6 {[%clk 0:01:22.9]} 19. Rac1 {[%clk 0:01:56.8]}
19... Qd7 {[%clk 0:01:03.9]} 20. h4 {[%clk 0:01:51.2]} 20... Bg4 {[%clk
0:01:00.1]} 21. Ng5 {[%clk 0:01:48.4]} 21... Bxg5 {[%clk 0:00:58.1]} 22. hxg5
{[%clk 0:01:48.3]} 22... Ne6 {[%clk 0:00:58.1]} 23. f3 {[%clk 0:01:38.5]} 23...
Bh5 {[%clk 0:00:57.1]} 24. cxd5 {[%clk 0:01:19.5]} 24... cxd5 {[%clk 0:00:57]}
25. Bc2 {[%clk 0:01:16.5]} 25... Qe7 {[%clk 0:00:54.9]} 26. Bb3 {[%clk
0:01:13.9]} 26... Qxg5 {[%clk 0:00:49.6]} 27. Qf2 {[%clk 0:01:08.3]} 27... Rab8
{[%clk 0:00:42.1]} 28. Rc5 {[%clk 0:00:56.4]} 28... b6 {[%clk 0:00:36.9]} 29.
Rxd5 {[%clk 0:00:51.2]} 29... Qe7 {[%clk 0:00:22.8]} 30. Ne4 {[%clk 0:00:49.9]}
30... Rxd5 {[%clk 0:00:20.2]} 31. Bxd5 {[%clk 0:00:50.4]} 31... Kg7 {[%clk
0:00:20.9]} 32. Bc6 {[%clk 0:00:44.8]} 32... Rd8 {[%clk 0:00:18.5]} 33. d5
{[%clk 0:00:45.1]} 33... Nc5 {[%clk 0:00:18.8]} 34. Nf6 {[%clk 0:00:38.9]} 34...
Nd3 {[%clk 0:00:18.9]} 35. Qe2 {[%clk 0:00:35.9]} 35... Nxe1 {[%clk 0:00:19]}
36. Qxe1 {[%clk 0:00:36.8]} 36... Qc5+ {[%clk 0:00:17.5]} 37. Kh2 {[%clk
0:00:35.5]} 37... Qe3 {[%clk 0:00:18]} 38. Qh4 {[%clk 0:00:30.1]} 38... Qxe5
{[%clk 0:00:17.7]} 39. Nxh5+ {[%clk 0:00:30.1]} 39... Qxh5 {[%clk 0:00:17.4]}
40. Qxh5 {[%clk 0:00:29.5]} 40... gxh5 {[%clk 0:00:18.1]} 41. Kh3 {[%clk
0:00:29.9]} 41... Kg6 {[%clk 0:00:17.5]} 42. Kh4 {[%clk 0:00:30.1]} 42... Re8
{[%clk 0:00:17.2]} 43. d6 {[%clk 0:00:30]} 43... Rd8 {[%clk 0:00:14.2]} 44. d7
{[%clk 0:00:28.2]} 44... Kf6 {[%clk 0:00:13.6]} 45. Kxh5 {[%clk 0:00:29.1]}
45... Ke7 {[%clk 0:00:13.8]} 46. Kh6 {[%clk 0:00:29.2]} 46... Kd6 {[%clk
0:00:14.4]} 47. Bb5 {[%clk 0:00:28.3]} 47... a6 {[%clk 0:00:14.6]} 48. Bxa6
{[%clk 0:00:28.6]} 48... Rxd7 {[%clk 0:00:15.5]} 49. Kxh7 {[%clk 0:00:28.7]}
49... Ke5 {[%clk 0:00:16.1]} 50. Kg7 {[%clk 0:00:26.8]} 50... f6+ {[%clk
0:00:16.3]} 51. Kg6 {[%clk 0:00:26.8]} 51... Rd2 {[%clk 0:00:17.2]} 52. Kf7
{[%clk 0:00:23.3]} 52... Rxg2 {[%clk 0:00:17.3]} 53. b4 {[%clk 0:00:23]} 53...
Rb2 {[%clk 0:00:17.8]} 54. b5 {[%clk 0:00:22.2]} 54... Ra2 {[%clk 0:00:18.3]}
55. Bb7 {[%clk 0:00:22.8]} 55... Rxa4 {[%clk 0:00:18.2]} 56. Bc6 {[%clk
0:00:23.7]} 56... Ra3 {[%clk 0:00:17.8]} 57. Kg6 {[%clk 0:00:23.5]} 57... Rc3
{[%clk 0:00:17.6]} 58. Kf7 {[%clk 0:00:22.9]} 58... Rxc6 {[%clk 0:00:17]} 59.
bxc6 {[%clk 0:00:23]} 59... Kd6 {[%clk 0:00:17.7]} 60. Kxf6 {[%clk 0:00:23.5]}
60... b5 {[%clk 0:00:18.2]} 61. Kf5 {[%clk 0:00:14]} 61... b4 {[%clk 0:00:17.3]}
62. Ke4 {[%clk 0:00:13.6]} 62... Kxc6 {[%clk 0:00:17.4]} 63. Kd4 {[%clk
0:00:13.9]} 63... Kb5 {[%clk 0:00:17.6]} 64. Kd3 {[%clk 0:00:14.4]} 64... Ka4
{[%clk 0:00:17.8]} 0-1

[Event "Early-Titled-Tuesday-Blitz-May-07-2024"]
[Site "Chess.com"]
[Date "2024.05.07"]
[Round "5"]
[White "Sanyura"]
[Black "kuchma777"]
[Result "0-1"]
[WhiteElo "2611"]
[BlackElo "2506"]
[TimeControl "180+1"]
[EndTime "9:00:17 PDT"]
[Termination "kuchma777 won on time"]

1. e4 {[%clk 0:02:57]} 1... c6 {[%clk 0:02:59.6]} 2. Nc3 {[%clk 0:02:56]} 2...
d5 {[%clk 0:03:00.1]} 3. d4 {[%clk 0:02:56.4]} 3... dxe4 {[%clk 0:03:00.4]} 4.
Nxe4 {[%clk 0:02:56.4]} 4... Nf6 {[%clk 0:03:01.3]} 5. Ng3 {[%clk 0:02:54.7]}
5... h5 {[%clk 0:03:01]} 6. h4 {[%clk 0:02:51.1]} 6... Bg4 {[%clk 0:02:51.7]} 7.
Nf3 {[%clk 0:02:51.2]} 7... e6 {[%clk 0:02:51.1]} 8. Bg5 {[%clk 0:02:47.1]} 8...
Bd6 {[%clk 0:02:49]} 9. Be2 {[%clk 0:02:43.3]} 9... Nbd7 {[%clk 0:02:44.8]} 10.
c3 {[%clk 0:02:37.3]} 10... Qc7 {[%clk 0:02:45.1]} 11. Nf1 {[%clk 0:02:35.6]}
11... O-O-O {[%clk 0:02:45.5]} 12. Ne3 {[%clk 0:02:35.1]} 12... Kb8 {[%clk
0:02:25.9]} 13. Qa4 {[%clk 0:02:29.2]} 13... e5 {[%clk 0:02:03.7]} 14. dxe5
{[%clk 0:02:03.3]} 14... Nxe5 {[%clk 0:01:57.7]} 15. Nxe5 {[%clk 0:01:40.5]}
15... Bxe5 {[%clk 0:01:46.9]} 16. Bxg4 {[%clk 0:01:40.3]} 16... hxg4 {[%clk
0:01:44.2]} 17. Bxf6 {[%clk 0:01:29.8]} 17... Bxf6 {[%clk 0:01:39.6]} 18. Qxg4
{[%clk 0:01:29.7]} 18... Qb6 {[%clk 0:01:32.7]} 19. h5 {[%clk 0:01:11.4]} 19...
Qc5 {[%clk 0:01:03.2]} 20. Rd1 {[%clk 0:01:02.9]} 20... Bg5 {[%clk 0:00:36.6]}
21. Rxd8+ {[%clk 0:00:59.7]} 21... Rxd8 {[%clk 0:00:35.3]} 22. O-O {[%clk
0:00:49.3]} 22... Bxe3 {[%clk 0:00:27]} 23. Qg3+ {[%clk 0:00:49.5]} 23... Ka8
{[%clk 0:00:25]} 24. fxe3 {[%clk 0:00:45.6]} 24... Qxh5 {[%clk 0:00:21.9]} 25.
Qxg7 {[%clk 0:00:43.3]} 25... Qc5 {[%clk 0:00:08.4]} 26. Re1 {[%clk 0:00:16.2]}
26... f5 {[%clk 0:00:06.3]} 27. Qf6 {[%clk 0:00:14.8]} 27... Re8 {[%clk
0:00:04.5]} 28. Qd4 {[%clk 0:00:14.8]} 28... Qe7 {[%clk 0:00:04.5]} 29. Rf1
{[%clk 0:00:14.5]} 29... Qe6 {[%clk 0:00:02.3]} 30. Qf4 {[%clk 0:00:11.8]} 30...
a6 {[%clk 0:00:02.7]} 31. Qxf5 {[%clk 0:00:11.9]} 31... Qxe3+ {[%clk 0:00:02.8]}
32. Qf2 {[%clk 0:00:12.6]} 32... Qd3 {[%clk 0:00:03.1]} 33. Re1 {[%clk
0:00:12.8]} 33... Rd8 {[%clk 0:00:02.7]} 34. Qe2 {[%clk 0:00:07.3]} 34... Qd5
{[%clk 0:00:03.2]} 35. a4 {[%clk 0:00:05.8]} 35... Rg8 {[%clk 0:00:03.6]} 36.
Qf2 {[%clk 0:00:05.9]} 36... Rd8 {[%clk 0:00:02.6]} 37. Qf3 {[%clk 0:00:03.7]}
37... Qb3 {[%clk 0:00:02.7]} 38. a5 {[%clk 0:00:03.4]} 38... Qxb2 {[%clk
0:00:02.3]} 39. Qe3 {[%clk 0:00:03.1]} 39... Qa3 {[%clk 0:00:01.8]} 40. Qb6
{[%clk 0:00:02.3]} 40... Rb8 {[%clk 0:00:02]} 41. Re3 {[%clk 0:00:00.3]} 41...
Qc1+ {[%clk 0:00:02.1]} 42. Kf2 {[%clk 0:00:00.7]} 42... Qd2+ {[%clk 0:00:02.5]}
43. Kg3 {[%clk 0:00:01.3]} 43... Rg8+ {[%clk 0:00:01.6]} 44. Kf4 {[%clk
0:00:01.9]} 44... Rf8+ {[%clk 0:00:02.1]} 45. Ke4 {[%clk 0:00:02]} 45... Qxg2+
{[%clk 0:00:02.3]} 46. Kd4 {[%clk 0:00:02.5]} 46... Qd2+ {[%clk 0:00:02.4]} 47.
Kc4 {[%clk 0:00:03]} 47... Rb8 {[%clk 0:00:01.3]} 48. Kb4 {[%clk 0:00:02.9]}
48... Qb2+ {[%clk 0:00:01.7]} 49. Kc5 {[%clk 0:00:03.4]} 49... Qa3+ {[%clk
0:00:01.9]} 50. Kc4 {[%clk 0:00:03.7]} 50... Qa2+ {[%clk 0:00:02.1]} 51. Kc5
{[%clk 0:00:04.1]} 51... Rf8 {[%clk 0:00:02.2]} 52. Re5 {[%clk 0:00:03.2]} 52...
Qa3+ {[%clk 0:00:02]} 53. Kc4 {[%clk 0:00:03.1]} 53... Qa4+ {[%clk 0:00:02.6]}
54. Kc5 {[%clk 0:00:01.9]} 54... Qa3+ {[%clk 0:00:02]} 55. Kc4 {[%clk
0:00:02.4]} 55... Qc1 {[%clk 0:00:02.3]} 56. Qc5 {[%clk 0:00:01.8]} 56... Qf1+
{[%clk 0:00:02.6]} 57. Kb3 {[%clk 0:00:02.2]} 57... Qb1+ {[%clk 0:00:02.5]} 58.
Kc4 {[%clk 0:00:02.3]} 58... Rf4+ {[%clk 0:00:02.8]} 0-1